Workbook

Sheet Start Here
A1: CornPicker® for Silage
A4: v. 1.05
A5: Mike Allen
A6: Department of Animal Science
A104: Click here to send comments or suggestions for future versions
A106: CornPicker® for Silage article in Michigan Dairy Review
A108: Michigan Corn Performance Trials

Sheet Farm Inputs
A1: Farm specific inputs1
A2: Shrinkage/spoilage, % of DM | B2: 0.13
A3: Feed refusals, % | B3: 0.03
A4: Corn silage production cost, $/acre | B4: 220
A5: Corn silage harvest cost, $/ wet ton | B5: 4.5
A6: Corn silage storage cost, $/ ton DM | B6: 26
A7: Corn grain storage cost, $/ ton DM | B7: 0
A8: Land rent equiv., $/ acre per year | B8: 120
A9: Milk price, $/ 100 lb | B9: 14
A10: Corn grain, dry ground, $/ ton as fed | B10: 125
A11: Soybean meal 48%, $/ ton as fed | B11: 230
A12: 1assumed to be the same for all hybrids

Sheet Cow Group Inputs
A1: Cow group inputs
A2: Group ID (lactating only)1 | B2: Lactating #1 | C2: Lactating #2 | D2: Lactating #3
A3: Decription | B3: Fresh | C3: High | D3: Low
A4: Number of animals in this group3 | B4: 8 | C4: 60 | D4: 16
A5: Dry Matter Intake, lb/ animal per day4 | B5: 40 | C5: 53 | D5: 48
A6: Forage NDF of diet, % of DM5 | B6: 0.22 | C6: 0.2 | D6: 0.23
A7: Corn silage, % of forage NDF6 | B7: 0.6667 | C7: 0.6667 | D7: 0.6667
A8: Diet cost, $/lb DM7 | B8: 0.065 | C8: 0.07 | D8: 0.06
A9: Milk yield response per unit of IVNDFD, lb 4% FCM/unit | B9: 0.55 | C9: 0.55 | D9: 0.55
A11: Group ID (non-lactating only)2 | B11: Non-lactating #1 | C11: Non-lactating #2
A12: Decription | B12: Far-off dry cows | C12: Close-up dry cows
A13: Number of animals in this group3 | B13: 10 | C13: 6
A14: Dry Matter Intake, lb/ animal per day4 | B14: 30 | C14: 27
A15: Forage NDF of diet, % of DM5 | B15: 0.26 | C15: 0.23
A16: Corn silage, % of forage NDF6 | B16: 0.6667 | C16: 0.6667
A18: Group ID (non-lactating only)2 | B18: Non-lactating #3 | C18: Non-lactating #4
A19: Decription | B19: Heifers <12 months old | C19: Heifers > 12 months old
A20: Number of animals in this group3 | B20: 50 | C20: 50
A21: Dry Matter Intake, lb/ animal per day4 | B21: 13 | C21: 26
A22: Forage NDF of diet, % of DM5 | B22: 0.24 | C22: 0.25
A23: Corn silage, % of forage NDF6 | B23: 0.6667 | C23: 0.6667

Sheet Hybrid Inputs-Results
A1: CornPicker® for Silage
A4: ='Start Here'!A4 -> v. 1.05
A5: Mike Allen
A6: Department of Animal Science
B7: Defender | C7: Challenger
A8: Company | B8: Pioneer | C8: Mycogen
A9: Hybrid | B9: P0783XR | C9: BMR09B67
A11: Hybrid inputs
A12: Plant population, seeds/acre | B12: 30000 | C12: 30000
A13: Harvest dry matter (DM), % | B13: 0.32 | C13: 0.32
A14: Seed cost, $/ bag | B14: 200 | C14: 220
A15: Number of kernels per bag | B15: 80000 | C15: 80000
A16: Yield of corn forage, tons of DM per acre (before ensiling) | B16: 8 | C16: 8
A17: In vitro neutral detergent fiber digestibility, % of NDF | B17: 0.6 | C17: 0.68
A18: Neutral detergent fiber, % of DM | B18: 0.38 | C18: 0.42
A19: Crude protein, % of DM | B19: 0.075 | C19: 0.075
B20: Defender | C20: Challenger
A21: Corn seed required, number of bags per year | B21: =B41*(B12/B15) -> 26.30972317 | C21: =C41*(C12/C15) -> 24.29145278
A22: Amount of corn silage stored, tons of DM per year | B22: =Calculations!B16 -> 561.2740942 | C22: =Calculations!C16 -> 518.2176593
A23: Differences from the Defender
A24: Soybean meal, tons of DM per year | C24: ='Hybrid Inputs-Results'!C44 -> -2.181742687
A25: Corn grain, tons of DM per year | C25: ='Hybrid Inputs-Results'!C45 -> 48.68731049
A26: Milk yield, lb per year | C26: =(C17-B17)*100*365*(('Cow Group Inputs'!B4*'Cow Group Inputs'!B9*'Cow Group Inputs'!B7)+('Cow Group Inputs'!C4*'Cow Group Inputs'!C9*'Cow Group Inputs'!C7)+('Cow Group Inputs'!D4*'Cow Group Inputs'!D9*'Cow Group Inputs'!D7)) -> 89940.4968
A27: DMI to support milk yield, lb per year | C27: =-1*C26*0.33/0.76 -> -39053.11045
B28: Defender | C28: Challenger
A29: Seed corn cost, $/year | B29: =B21*B14 -> 5261.944633 | C29: =C21*C14 -> 5344.119611
A30: Land cost, $/year | B30: =B41*'Farm Inputs'!B8 -> 8419.111413 | C30: =C41*'Farm Inputs'!B8 -> 7773.264889
A31: Production cost, $/year | B31: =B41*'Farm Inputs'!B4 -> 15435.03759 | C31: =C41*'Farm Inputs'!B4 -> 14250.98563
A32: Harvesting cost, $/year | B32: =(Calculations!B16*'Farm Inputs'!B5)/B13 -> 7892.91695 | C32: =(Calculations!C16*'Farm Inputs'!B5)/C13 -> 7287.435833
A33: Corn silage storage cost, $/year | B33: =Calculations!B16*'Farm Inputs'!B6 -> 14593.12645 | C33: =(Calculations!C16*'Farm Inputs'!B6) -> 13473.65914
A34: Differences from the Defender
A35: Corn grain storage cost, $/year | B35: -> | C35: =C25*'Farm Inputs'!B7 -> 0
A36: Soybean meal, $/year | B36: -> | C36: =C24*'Farm Inputs'!B11/0.9 -> -557.5564645
A37: Corn grain, $/year | B37: -> | C37: =C25*'Farm Inputs'!B10/0.9 -> 6762.126457
A38: Milk yield difference, $/year | B38: -> | C38: =IF(C17-B17>0,-1*C26*'Farm Inputs'!B9/100,-1*C26*'Farm Inputs'!B9/100) -> -12591.66955
A39: Feed costs (not incl. corn silage), $/year | B39: -> | C39: =IF(C17-B17>0,(-1*C27*Calculations!C17)+(Calculations!B29-Calculations!C29),(-1*C27*Calculations!C17)-(Calculations!B29-Calculations!C29)) -> 1683.067147
B40: Defender | C40: Challenger
A41: Land required for corn silage production, acres per year | B41: =Calculations!B16/B16 -> 70.15926177 | C41: =Calculations!C16/C16 -> 64.77720741
A42: Partial budget cost for corn silage production, $/year | B42: =SUM(B29:B33) -> 51602.13704 | C42: =C29+C30+C31+C32+C33+C35+C36+C37+C38+C39 -> 43425.43269
A43: Solver:
A44: =C44+C45 -> 46.5055678 | B44: =Calculations!C12 -> 46.5055678 | C44: -2.181742687
A45: =0.499*C44+0.094*C45 -> 3.487917585 | B45: =Calculations!C15 -> 3.487917585 | C45: 48.68731049
A46: Profit advantage for Challenger compared to Defender, $ /year => | C46: =B42-C42 -> 8176.704344

Sheet Version Histiry (hidden)

Sheet Calculations (hidden)
A1: Corn silage intake, tons DM/year
A2: Lactating #1 | B2: =('Cow Group Inputs'!B4*365*'Cow Group Inputs'!B5*'Cow Group Inputs'!B6*'Cow Group Inputs'!B7)/'Hybrid Inputs-Results'!B18/2000 -> 22.54147789
A3: Lactating #2 | B3: =('Cow Group Inputs'!C4*365*'Cow Group Inputs'!C5*'Cow Group Inputs'!C6*'Cow Group Inputs'!C7)/'Hybrid Inputs-Results'!B18/2000 -> 203.6417605
A4: Lactating #3 | B4: =('Cow Group Inputs'!D4*365*'Cow Group Inputs'!D5*'Cow Group Inputs'!D6*'Cow Group Inputs'!D7)/'Hybrid Inputs-Results'!B18/2000 -> 56.55861726
A5: Dry #1 | B5: =('Cow Group Inputs'!B13*365*'Cow Group Inputs'!B14*'Cow Group Inputs'!B15*'Cow Group Inputs'!B16)/'Hybrid Inputs-Results'!B18/2000 -> 24.97493289
A6: Dry #2 | B6: =('Cow Group Inputs'!C13*365*'Cow Group Inputs'!C14*'Cow Group Inputs'!C15*'Cow Group Inputs'!C16)/'Hybrid Inputs-Results'!B18/2000 -> 11.93033333
A7: Heifers #1 | B7: =('Cow Group Inputs'!B20*365*'Cow Group Inputs'!B21*'Cow Group Inputs'!B22*'Cow Group Inputs'!B23)/'Hybrid Inputs-Results'!B18/2000 -> 49.94986579
A8: Heifers #2 | B8: =('Cow Group Inputs'!C20*365*'Cow Group Inputs'!C21*'Cow Group Inputs'!C22*'Cow Group Inputs'!C23)/'Hybrid Inputs-Results'!B18/2000 -> 104.0622204
A9: Total | B9: =B2+B3+B4+B5+B6+B7+B8 -> 473.6592081
B10: Defender | C10: Challenger
A11: Corn silage fed, tons DM/year | B11: =B9/(1-'Farm Inputs'!B3) -> 488.308462 | C11: =B11*('Hybrid Inputs-Results'!B18/'Hybrid Inputs-Results'!C18) -> 441.8028941
A12: Difference, tons DM/year | C12: =B11-C11 -> 46.5055678
A13: Corn silage NDF, tons DM/year | B13: =B11*'Hybrid Inputs-Results'!B18 -> 185.5572155 | C13: =C11*'Hybrid Inputs-Results'!C18 -> 185.5572155
A14: Corn silage CP, tons DM/year | B14: =B11*'Hybrid Inputs-Results'!B19 -> 36.62313465 | C14: =C11*'Hybrid Inputs-Results'!C19 -> 33.13521706
A15: Difference, tons DM/year | C15: =B14-C14 -> 3.487917585
A16: Corn silage harvested, tons DM/year | B16: =B11/(1-'Farm Inputs'!B2)+B27 -> 561.2740942 | C16: =C11/(1-'Farm Inputs'!B2)+C27 -> 518.2176593
A17: Average lactating diet cost, $/lb | C17: =('Cow Group Inputs'!B4*'Cow Group Inputs'!B5*'Cow Group Inputs'!B8+'Cow Group Inputs'!C4*'Cow Group Inputs'!C5*'Cow Group Inputs'!C8+'Cow Group Inputs'!D4*'Cow Group Inputs'!D5*'Cow Group Inputs'!D8)/('Cow Group Inputs'!B4*'Cow Group Inputs'!B5+'Cow Group Inputs'!C4*'Cow Group Inputs'!C5+'Cow Group Inputs'!D4*'Cow Group Inputs'!D5) -> 0.06782567948
A18: DMI to support increased milk yield, lb per cow/year | C18: =('Hybrid Inputs-Results'!C17-'Hybrid Inputs-Results'!B17)*100*0.55*(0.3/0.76)*365 -> 633.9473684
A20: Corn silage (harvested) required for difference in milk yield
A21: Lactating #1, lb DM/year | B21: =('Cow Group Inputs'!B4*'Cow Group Inputs'!B6*'Cow Group Inputs'!B7*C18)/('Hybrid Inputs-Results'!C18)/(1-'Farm Inputs'!B3)/(1-'Farm Inputs'!B2) -> 2098.72748
A22: Lactating #2, lb DM/year | B22: =('Cow Group Inputs'!C4*'Cow Group Inputs'!C6*'Cow Group Inputs'!C7*C18)/('Hybrid Inputs-Results'!C18)/(1-'Farm Inputs'!B3)/(1-'Farm Inputs'!B2) -> 14309.50554
A23: Lactating #3, lb DM/year | B23: =('Cow Group Inputs'!D4*'Cow Group Inputs'!D6*'Cow Group Inputs'!D7*C18)/('Hybrid Inputs-Results'!C18)/(1-'Farm Inputs'!B3)/(1-'Farm Inputs'!B2) -> 4388.248367
A24: Total, lb DM/year | B24: =B21+B22+B23 -> 20796.48139
A25: Total, tons DM/year | B25: =B24/2000 -> 10.3982407
B26: Defender | C26: Challenger
A27: Harvested CS adjustment, tons | B27: =IF(B25<0,B25,0) -> 0 | C27: =IF(B25>0,B25,0) -> 10.3982407
A28: Corn silage cost, $/ton DM harvested | B28: =('Hybrid Inputs-Results'!B29+'Hybrid Inputs-Results'!B30+'Hybrid Inputs-Results'!B31+'Hybrid Inputs-Results'!B32+'Hybrid Inputs-Results'!B33)/B16 -> 91.9375 | C28: =('Hybrid Inputs-Results'!C29+'Hybrid Inputs-Results'!C30+'Hybrid Inputs-Results'!C31+'Hybrid Inputs-Results'!C32+'Hybrid Inputs-Results'!C33)/C16 -> 92.875
A29: CS adjustment for feed cost | B29: =B27*B28 -> 0 | C29: =C27*C28 -> 965.7366046
